Cogmind - Beta 16.1 @@@ ROGUE MODE // 2026.04.14 @ 20:19:12 Player: DietSnapple Result: Self-destructed Performance ------------- Evolutions (2) 1000 Regions Visited (5) 1000 Robots Destroyed (43) 215 Value Destroyed (602) 602 Prototype IDs (25) 500 Alien Tech Used (0) 0 Bonus (327) 327 TOTAL SCORE: 3644 Bonus ------- Follower Combat Kills 60 Aligned with FarCom 300 Friendly Fire -33 Cogmind --------- Core Integrity 550/550 Matter 260/300 Energy 100/100 System Corruption 0% Temperature Cool (1) Movement Flying (50) Location -8/Materials Parts ------- > --- POWER (1) -------- (None) > --- PROPULSION (4) --- Flying Fortress v7 > --- UTILITY (4) ------ Large Storage Unit Seismic Detector Hardened Light Armor Plating > --- WEAPON (2) ------- (None) > --- INVENTORY (15) --- (None) Peak State ------------ > --- POWER ------------ (None) > --- PROPULSION ------- Flying Fortress v7 > --- UTILITY ---------- Large Storage Unit Seismic Detector Hardened Light Armor Plating > --- WEAPON ----------- (None) > --- INVENTORY -------- (None) [Rating: 36] Favorites ----------- Power Ion Engine Engine Ion Engine Propulsion Light Treads Treads Light Treads Leg Aluminum Leg Wheel Wheel Flight Unit Flying Fortress v7 Utility Seismic Detector Device Seismic Detector Storage Medium Storage Unit Protection Light Armor Plating Weapon Assault Rifle Energy Gun EM Pulse Gun Ballistic Gun Assault Rifle Launcher Grenade Launcher Build | -11 -10 -10 -10 -9 -8 ------- Run | Yrd Mat Min Exi Min Mat Slots Evolved 4 | . . . . . 4 Power . | . . . . . . Propulsion 2 | . . . . . 2 Utility 2 | . . . . . 2 Weapon . | . . . . . . Parts Attached 24 | 8 3 2 . 7 4 Power 4 | 1 1 1 . 1 . Engine 4 | 1 1 1 . 1 . Core . | . . . . . . Reactor . | . . . . . . Propulsion 6 | 2 . 1 . 2 1 Treads 2 | 2 . . . . . Leg 2 | . . . . 2 . Wheel 1 | . . 1 . . . Hover . | . . . . . . Flight 1 | . . . . . 1 Utility 8 | 2 1 . . 2 3 Device 3 | 1 . . . 1 1 Storage 3 | 1 1 . . . 1 Processor . | . . . . . . Hackware . | . . . . . . Protection 2 | . . . . 1 1 Artifact . | . . . . . . Weapon 6 | 3 1 . . 2 . Energy Gun 1 | 1 . . . . . Energy Cannon . | . . . . . . Ballistic Gun 4 | 2 . . . 2 . Ballistic Cannon . | . . . . . . Launcher 1 | . 1 . . . . Special Weapon . | . . . . . . Impact Weapon . | . . . . . . Slashing Weapon . | . . . . . . Piercing Weapon . | . . . . . . Special Melee Weapon . | . . . . . . Unidentified Prototypes . | . . . . . . Parts Lost 9 | . 2 2 . 5 . Power 2 | . 1 . . 1 . Propulsion 3 | . 1 1 . 1 . Utility 1 | . . . . 1 . Weapon 3 | . . 1 . 2 . Highest Loss Streak 3 | . 2 2 . 3 . To Critical Strikes . | . . . . . . Average Backups 6 | 1 5 8 8 5 . Power . | . . . . . . Propulsion . | . . . . 1 . Utility 3 | . 2 4 5 4 . Weapon 2 | . 2 3 2 . . Tool/Special . | . . . . . . Unused Backups 5 | . . . 1 4 . Power . | . . . . . . Propulsion . | . . . . . . Utility 5 | . . . 1 4 . Weapon . | . . . . . . Tool/Special . | . . . . . . Average Slot Usage (%) 82 | . 97 83 85 52 27 Engine 12 | . 13 14 14 7 . Treads 12 | . 25 5 . . . Wheel 4 | . . 7 14 4 . Device 11 | . 14 14 14 2 5 Storage 12 | . 14 14 14 9 7 Protection 1 | . . . . 6 7 Ballistic Gun 22 | . 25 22 28 16 . Launcher 2 | . 2 5 . . . Peak Build Rating 36 | 7 8 8 10 12 36 Average Rating 7 | 4 7 7 8 7 33 On Entrance 5 | . 7 7 8 10 3 Avg Prop Armor Cover (%) . | . . . . . . Naked Turns 147 | . . . . 145 2 Heaviest Build 26 | 15 21 20 20 22 26 Greatest Support 50 | 40 40 20 10 20 50 Greatest Overweight (x) 7 | . . 5 1 7 . Average Overweight (x) . | . . . 1 . . Largest Inventory Capacity 15 | 8 10 10 10 10 15 Average Capacity 9 | 7 8 10 10 8 13 Most Carried 10 | 2 9 10 10 10 5 Average Carried 6 | 1 5 8 9 8 . Final Capacity 15 | 8 10 10 10 5 15 Final Carried 10 | 2 8 10 10 5 . Class Distribution -------------------- 98% | Mutant Dominant Class ---------------- Mutant | -10/Materials Mutant | -10/Mines Mutant | -10/Exiles Mutant | -9/Mines Mutant | -8/Materials Resources | -11 -10 -10 -10 -9 -8 ----------- Run | Yrd Mat Min Exi Min Mat Matter Collected 1037 | 223 300 194 . 320 . Remotely . | . . . . . . Salvage Created 975 | 78 457 116 . 324 . Parts 70 | 4 29 10 . 27 . Haulers Intercepted 1 | . 1 . . . . Recyclers Shooed 1 | . . 1 . . . Parts Field Recycled . | . . . . . . Retrieved Matter . | . . . . . . Parts Self-Destructed . | . . . . . . Prevented . | . . . . . . Parts Restored . | . . . . . . Kills | -11 -10 -10 -10 -9 -8 ------- Run | Yrd Mat Min Exi Min Mat Combat Hostiles Destroyed 31 | . 12 3 . 16 . Guns 29 | . 10 3 . 16 . AOE 2 | . 2 . . . . Classes Destroyed 10 | 2 6 2 . . . Worker 3 | . . 2 . 1 . Builder 1 | . 1 . . . . Tunneler 1 | 1 . . . . . Hauler 1 | . 1 . . . . Recycler 2 | 1 1 . . . . Operator 2 | . 2 . . . . Watcher 1 | . 1 . . . . Swarmer 23 | . 6 3 . 14 . Grunt 8 | . 6 . . 2 . Zionite 1 | . . 1 . . . Best Kill Streak 6 | 2 4 4 . 6 . Combat Bots Only 6 | . 4 3 . 6 . Max Kills in Single Turn 1 | 1 1 1 . 1 . Gunslinging . | . . . . . . Exploded 1 | . 1 . . . . Melee . | . . . . . . Uniques/NPCs Destroyed . | . . . . . . Combat | -11 -10 -10 -10 -9 -8 -------- Run | Yrd Mat Min Exi Min Mat Hostile Shots Fired 192 | . 72 27 . 93 . Missed 47 | . 16 8 . 23 . Hits 145 | . 56 19 . 70 . Projectile 145 | . 56 19 . 70 . Critical Strikes 3 | . . . . 3 . Damage Taken 1346 | . 542 172 . 632 . Core 238 | . 53 37 . 148 . Absorbed by Shields . | . . . . . . Core Remaining (%) 52 | 100 . . . 4 . Volleys Fired 130 | 2 60 21 . 47 . Largest 2 | 2 2 2 . 2 . Hottest 50 | 40 50 40 . 40 . Shots Fired 217 | 4 103 36 . 74 . Gun 214 | 4 100 36 . 74 . Cannon . | . . . . . . Launcher 3 | . 3 . . . . Special . | . . . . . . Kinetic 214 | 4 100 36 . 74 . Thermal . | . . . . . . Explosive 3 | . 3 . . . . Electromagnetic . | . . . . . . Robot Hit Streak 12 | 1 12 2 . 5 . Robot Miss Streak 5 | 1 3 5 . 3 . Penetration Max . | . . . . . . Secondary Targets 3 | . . . . 3 . Max Gunslinging Chain 1 | . . . . 1 . Shots Hit Robots 124 | 2 67 11 . 44 . Core Hits 60 | 2 29 9 . 20 . Critical Kills . | . . . . . . Critical Parts Destroyed 1 | . . . . 1 . Critical Strikes 1 | . . . . 1 . Destroy 1 | . . . . 1 . Melee Attacks . | . . . . . . Impact . | . . . . . . Slashing . | . . . . . . Piercing . | . . . . . . Sneak Attacks . | . . . . . . Combat Hostiles . | . . . . . . Follow-up Attacks . | . . . . . . Damage Inflicted 1814 | 30 1050 166 . 568 . Guns 1577 | 30 829 166 . 552 . Cannons . | . . . . . . Explosions 221 | . 221 . . . . Melee . | . . . . . . Ramming 16 | . . . . 16 . Kinetic 1577 | 30 829 166 . 552 . Thermal . | . . . . . . Explosive 221 | . 221 . . . . Electromagnetic . | . . . . . . Impact . | . . . . . . Slashing . | . . . . . . Piercing . | . . . . . . Highest Corruption 2 | . . . . 2 . Average Corruption 2 | . . . . 2 . Corruption Purged . | . . . . . . Corruption Blocked . | . . . . . . Overload Shots . | . . . . . . Overflow Damage . | . . . . . . Projectiles . | . . . . . . Explosions . | . . . . . . Melee . | . . . . . . Knockbacks . | . . . . . . Impact . | . . . . . . Kinetic . | . . . . . . Secondary . | . . . . . . Self-Inflicted Damage 6 | . . . . 6 . Shots . | . . . . . . Rammed 7 | . . . . 7 . Targets Rammed 7 | . . . . 7 . Kicked . | . . . . . . Crushed . | . . . . . . Highest Temperature 8 | . 5 8 . 8 . Average Temperature 4 | . 2 4 . 4 . Received Heat Transfer 333 | . 186 45 . 102 . Siege Activations . | . . . . . . Martial Activations . | . . . . . . Shielding Activations . | . . . . . . Robots Disrupted . | . . . . . . Combat Hostiles . | . . . . . . Robots Corrupted . | . . . . . . Combat Hostiles . | . . . . . . Parts Fried . | . . . . . . Impact Corruptions . | . . . . . . Robots Melted . | . . . . . . Combat Hostiles . | . . . . . . Parts Melted . | . . . . . . Heat Transferred . | . . . . . . Parts Sabotaged . | . . . . . . Parts Stolen . | . . . . . . Parts Stripped . | . . . . . . Power Chain Reactions . | . . . . . . Alert | -11 -10 -10 -10 -9 -8 ------- Run | Yrd Mat Min Exi Min Mat Maximum Alert Level 1 | . . . . 1 . Low Security (%) 98 | 100 100 100 . 93 100 Level 1 1 | . . . . 6 . Level 2 . | . . . . . . Level 3 . | . . . . . . Level 4 . | . . . . . . Level 5 . | . . . . . . High Security . | . . . . . . Max Security . | . . . . . . Peak Influence 210 | 10 171 55 . 210 74 Initial 54 | . . 49 . . 54 Average 60 | . 53 16 . 150 56 Influence Increases 986 | 10 408 133 . 405 30 Destroy 0b10 Robot/C 660 | . 240 100 . 320 . Destroy 0b10 Robot/NC 55 | 10 30 10 . 5 . Destroy Leader 124 | . 54 20 . 50 . Allied During Kill 3 | . . 3 . . . Successful Hack 9 | . 9 . . . . Disable Machine 15 | . 15 . . . . Destroy Structure 15 | . 15 . . . . Partial Spotted 30 | . . . . . 30 Lose Combat Pursuer 75 | . 45 . . 30 . Influence Decreases 912 | 10 279 262 . 264 97 Entered New Map 167 | . . 80 . . 87 Time Decay 655 | 10 259 162 . 214 10 Lost Part 90 | . 20 20 . 50 . Squads Dispatched 3 | . 3 . . . . Investigation 1 | . 1 . . . . Extermination . | . . . . . . Reinforcement 2 | . 2 . . . . Assault . | . . . . . . Garrison . | . . . . . . Intercept . | . . . . . . Searches Triggered . | . . . . . . Construction Impeded . | . . . . . . Haulers Reinforced . | . . . . . . Active Scanning Responses . | . . . . . . Cargo Convoy Interrupts . | . . . . . . Stealth | -11 -10 -10 -10 -9 -8 --------- Run | Yrd Mat Min Exi Min Mat Distress Signals 3 | . 2 . . 1 . Communications Jammed . | . . . . . . Distress Signals . | . . . . . . Times Spotted 50 | . 22 5 . 23 . Peak Tracking Total 6 | . 5 3 . 6 . Tactical Retreats 5 | . 2 . . 3 . Traps | -11 -10 -10 -10 -9 -8 ------- Run | Yrd Mat Min Exi Min Mat Traps Triggered 1 | . 1 . . . . Indirectly . | . . . . . . Trap Hack Attempts . | . . . . . . Triggered . | . . . . . . Disarmed . | . . . . . . Reprogrammed . | . . . . . . Reused . | . . . . . . Traps Extracted . | . . . . . . Installed . | . . . . . . Triggered . | . . . . . . Machines | -11 -10 -10 -10 -9 -8 ---------- Run | Yrd Mat Min Exi Min Mat Machines Disabled 1 | . 1 . . . . Max in Single Turn 1 | . 1 . . . . Machines Repaired . | . . . . . . Machines Dismantled . | . . . . . . Machines Sabotaged . | . . . . . . Overloaded Fab Kills . | . . . . . . Hacking | -11 -10 -10 -10 -9 -8 --------- Run | Yrd Mat Min Exi Min Mat Machines Accessed 8 | . 5 1 1 . 1 Terminals 6 | . 5 . . . 1 Fabricators . | . . . . . . Repair Stations . | . . . . . . Recycling Units . | . . . . . . Scanalyzers . | . . . . . . Garrison Access . | . . . . . . Total Hacks 14 | . 10 1 1 . 2 Successful 11 | . 9 1 1 . . Failed 3 | . 1 . . . 2 Catastrophic 1 | . . . . . 1 Database Lockouts . | . . . . . . Manual 7 | . 4 . 1 . 2 Terminals 12 | . 10 . . . 2 Fabricators . | . . . . . . Repair Stations . | . . . . . . Recycling Units . | . . . . . . Scanalyzers . | . . . . . . Garrison Access . | . . . . . . Terminal Hacks 8 | . 6 1 1 . . Prototype ID Bank 1 | . 1 . . . . Open Door 1 | . . 1 . . . Locate Traps 3 | . 3 . . . . Hauler Manifests 1 | . 1 . . . . Zone Layout 1 | . 1 . . . . Proto ID Catalog 1 | . . . 1 . . Fabricator Hacks . | . . . . . . Repair Station Hacks . | . . . . . . Recycling Unit Hacks . | . . . . . . Scanalyzer . | . . . . . . Garrison Access Hacks . | . . . . . . Unauthorized Hacks 3 | . 3 . . . . Terminals 3 | . 3 . . . . Botnet 2 | . 2 . . . . Operators 1 | . 1 . . . . Fabricators . | . . . . . . Repair Stations . | . . . . . . Recycling Units . | . . . . . . Scanalyzers . | . . . . . . Garrison Access . | . . . . . . Data Cores Recovered . | . . . . . . Used . | . . . . . . Hacking Detections 5 | . 4 . . . 1 Full Trace Events . | . . . . . . Feedback Events . | . . . . . . Feedback Blocked . | . . . . . . Robot Schematics Acquired . | . . . . . . Robots Built . | . . . . . . Authchips . | . . . . . . Time . | . . . . . . Total Robot Build Rating . | . . . . . . Part Schematics Acquired . | . . . . . . Parts Built . | . . . . . . Authchips . | . . . . . . Time . | . . . . . . Total Part Build Rating . | . . . . . . Part Studies Acquired . | . . . . . . Parts Repaired . | . . . . . . Time . | . . . . . . Parts Recycled . | . . . . . . Recycled Matter . | . . . . . . Retrieved Matter . | . . . . . . Retrieved Components . | . . . . . . Parts Scanalyzed . | . . . . . . Part Schematics Acquired . | . . . . . . Parts Damaged . | . . . . . . Bothacking | -11 -10 -10 -10 -9 -8 ------------ Run | Yrd Mat Min Exi Min Mat Used RIF Installer . | . . . . . . Robots Hacked . | . . . . . . Non-combat . | . . . . . . Combat . | . . . . . . Robot Hacks Applied . | . . . . . . Relay Couplers Released . | . . . . . . Fabnet Peak Effective % . | . . . . . . Robots Rewired . | . . . . . . Allies Hacked . | . . . . . . Hacks Repelled . | . . . . . . Allies | -11 -10 -10 -10 -9 -8 -------- Run | Yrd Mat Min Exi Min Mat Total Allies 2 | . . 2 . . . Largest Group 2 | . . 2 1 . . Highest-Rated Group 42 | . . 42 31 . . Highest-Rated Ally 31 | . . 31 31 . . Total Orders . | . . . . . . Ally Attacks 2 | . . 2 . . . Total Damage 42 | . . 42 . . . Kills 2 | . . 2 . . . Allies Corrupted . | . . . . . . Allies Melted . | . . . . . . Intel | -11 -10 -10 -10 -9 -8 ------- Run | Yrd Mat Min Exi Min Mat Active Infowar (turns) 1807 | 29 994 544 210 3 27 Seismic 1807 | 29 994 544 210 3 27 Robot Analysis Total . | . . . . . . Derelict Logs Recovered 1 | . . 1 . . . Drone Launches . | . . . . . . Drone Recoveries . | . . . . . . Exploration | -11 -10 -10 -10 -9 -8 ------------- Run | Yrd Mat Min Exi Min Mat Turns Passed 2410 | 164 994 544 210 459 39 Spaces Moved 1582 | 97 503 406 218 291 67 Core 195 | 10 . 5 . 178 2 Treads 713 | 87 503 123 . . . Legs 40 | . . . . 40 . Wheels 569 | . . 278 218 73 . Hover . | . . . . . . Flight 65 | . . . . . 65 Fastest Speed 50 | 50 160 95 95 50 50 Average Speed 121 | 148 160 117 95 88 50 Slowest Speed 400 | 160 160 300 95 400 50 Overloaded Moves . | . . . . . . Propulsion Burnouts . | . . . . . . Robots Hopped . | . . . . . . Potential Cave-ins . | . . . . . . Cave-ins Triggered . | . . . . . . Exploration Rate (%) 47 | 5 85 85 60 45 7 Regions Visited 5 Branch Regions 3 Pre-discovered Areas . | . . . . . . Known Exits Taken . | . . . . . . Unknown Exits Taken 5 | 1 1 1 1 1 . Scrap Searched 3 | . . 2 . 1 . Spaces Dug . | . . . . . . Terrain Destroyed 19 | . 19 . . . . Melee . | . . . . . . Projectile . | . . . . . . AOE 19 | . 19 . . . . Terrain Rammed . | . . . . . . Walls Destroyed . | . . . . . . Machines Disabled . | . . . . . . Actions | -11 -10 -10 -10 -9 -8 --------- Run | Yrd Mat Min Exi Min Mat Total 1841 | 109 589 437 222 413 71 Wait 84 | 1 16 6 . 61 . Move 1577 | 96 502 405 217 290 67 Hop . | . . . . . . Pick Up 13 | 2 7 2 1 1 . Fast Attach 15 | 7 . 1 . 5 2 Attach 5 | . 1 1 . 1 2 Detach . | . . . . . . Swap 5 | 1 2 1 . 1 . Drop 5 | . 1 . 4 . . Fire 130 | 2 60 21 . 47 . Melee . | . . . . . . Ram 7 | . . . . 7 . Kick . | . . . . . . Crush . | . . . . . . Escape Stasis . | . . . . . . Rewire . | . . . . . . Trap . | . . . . . . Miscellaneous . | . . . . . . Route ------- -11/Scrapyard -10/Materials (discovered 4 exits: [*Mat x2] / *Min x2) -10/Mines (discovered 3 exits: [*Mat x2] / *Exi) -10/Exiles -9/Mines -8/Materials (discovered 1 exit: Fac) History --------- Turn | Location | Event 4 | -11/Scrapyard | Discovered new exit (range 14) 165 | -11/Scrapyard | Entered Materials 318 | -10/Materials | Build established: Mutant 425 | -10/Materials | Discovered new exit (range 15) 628 | -10/Materials | Discovered new exit (range 10) 908 | -10/Materials | Discovered new exit (range 11) 1090 | -10/Materials | Discovered new exit (range 15) 1159 | -10/Materials | Entered Mines 1268 | -10/Mines | Learned location of 1 exit from Materials 1307 | -10/Mines | Discovered new exit (range 9) 1475 | -10/Mines | Found the Drone Emporium 1480 | -10/Mines | Found Prototype Device 1660 | -10/Mines | Discovered new exit (range 6) 1694 | -10/Mines | Deemed a non-threat by the Exiles lab entrance 1695 | -10/Mines | Discovered new exit (range 5) 1703 | -10/Mines | Entered Exiles 1703 | -10/Exiles | Accompanied by 1 ally 1727 | -10/Exiles | Met 8R-AWN 1733 | -10/Exiles | Led the pair of lost Derelicts to a safe place 1742 | -10/Exiles | Met EX-HEX 1773 | -10/Exiles | Met EX-BIN 1784 | -10/Exiles | Aligned with FarCom system 1785 | -10/Exiles | Given EX-Vault access code 1814 | -10/Exiles | Opened EX-Vault 1822 | -10/Exiles | Found Flying Fortress v7 1841 | -10/Exiles | Warned to stay clear of 0b10 Research branches 1871 | -10/Exiles | Met EX-DEC 1904 | -10/Exiles | Discovered new exit (range 11) 1913 | -10/Exiles | Left Exiles lab with Flying Fortress v7 1913 | -10/Exiles | Entered Mines 1923 | -9/Mines | Core integrity fell below 50% 1977 | -9/Mines | Found a damaged Exp. Sensor Array with a note attached 1980 | -9/Mines | Found Prototype Device 2154 | -9/Mines | Lost 3 parts (1p1u1w) 2162 | -9/Mines | Core integrity fell below 20% 2201 | -9/Mines | Assembled infested the area 2205 | -9/Mines | Received a Rocket Launcher from a helpful Derelict 2227 | -9/Mines | Released all parts (7) 2365 | -9/Mines | Discovered new exit (range 7) 2369 | -9/Mines | Met a Derelict testing a Signal Generator 2372 | -9/Mines | Entered Materials 2372 | -8/Materials | Evolved 4 slots: Propulsion x2, Utility x2 2373 | -8/Materials | Identified exit to Factory 2411 | -8/Materials | Self-destructed Last Messages --------------- 02291_ Slammed into R-06 Scavenger. 02295_ Slammed into K-01 Serf. 02351_ Slammed into T-07 Excavator. 02353_ Destabilizing: System corrupted (+2). 02363_ T-07 Excavator is excavating. 02365_ EXIT=FOUND 02369_ A derelict emerges from the shadows: "Quiet! I'm testing a new device we can use to divert those annoying Unaware when we need to." 02372_ Signal Generator broadcasts a burst of procedurally generated transmissions. 02372_ ALERT: Intercepting significant anomalous signal. Redirecting assault force. PARAMETERS=PROPULSION+2,UTILITY+2 LOCATION=UNKNOWN GOAL=ESCAPE 02372_ Receiving FarCom transmissions... Loading 1 Materials exit... 02376_ Acquired Hrd. Light Armor Plating. 02379_ Acquired Lrg. Storage Unit. 02387_ Connecting with Terminal... 02387_ Current location identified: Materials 02408_ Connecting with Terminal... Map ----- +----------------------------------------------------+ | ????????????????????? ???????????? | | ????????????????????? ???????????? | | ????????????????????? ???????????? | | ????????????????????? #??????????? | | ????????????????????? #??????????? | | ????????????????????? #??????????? | | ????????????????????# #??????????? | | ????????????????????# #??????????? | | ????????????????????# ########???? | | ???????##########???# # ????? | | ???????# #???# # """""???? | | ???????# """ ##### # """"" #? | | ???????# """ # # """"" #? | | ???????# """ # # #? | | ???????# + T + #? | | ???????# """ # # #? | | ???????# """ # # #? | | ???????# """ ## ############? | | ???????# ! ## ## #???? | | ???????########### ## #???? | | ?????????????????# ## """ #???? | | ?????????????????# ## """ #???? | | ?????????????????# ## """ #???? | | ????????????????## ## #???? | | ????????????????# ###/####???? | | ????????????????# T @ #???? | | ????????????????# "" #???? | | ????????????????# #???? | | ????????????????# ###???? | | ????????????????#### #?????? | | ???????????????????# #?????? | | ???????????????????# #?????? | | ???????????????????# #?????? | | ???????????????????# #?????? | | ???????????????????# #?????? | | ???????????????????# #?????? | | ??????????????????? #?????? | | ?????????????????? +?????? | | ?????????????????? ""## ##?????? | | ??????????????????? T"#? #??????? | | ??????????????????? ????+???????? | | ???????????????????? ????????????? | | ?????????????????????o???????????? | | ?????????????????????????????????? | | ?????????????????????????????????? | | ?????????????????????????????????? | | ?????????????????????????????????? | | ?????????????????????????????????? | | ?????????????????????????????????? | | ?????????????????????????????????? | +----------------------------------------------------+ Best States ------------- Heat Dissipation 35 Energy Generation 10 Energy Capacity 250 Matter Stores 300 Matter Capacity 300 Sight Range 16 Terrain Scan Density 10 Armor Coverage 150 Evasion (%) 60 Recoil Reduction 2 Item Schematics ----------------- None Robot Schematics ------------------ None Fabricated ------------ Nothing Repaired ---------- Nothing Studied --------- None Alien Tech Used ----------------- None Achievements -------------- None Challenges ------------ None Game ------ Seed LightningDataPurifier Manual? 0 Play Time 00:17:24 Cumulative 62.5 hours Start 2026.02.19 @ 17:39:09 End 2026.04.14 @ 20:19:12 Sessions 18 Manual Loads 0 Difficulty Rogue Special Mode None Game No. 129 Rogue 122 Adventurer 7 Explorer 0 Win Type - Total 1 Types 1/0/0/0/0/0/0/0/0/0 Lore% 34 Gallery% 40 Achievement% 32 Wizard Run 0 Options --------- Layout 0 ASCII 0 Keyboard 1 Movement Vi Keybinds 0 Fullscreen 1 Font 18/SmallcapsGlow Map View 112x50 Zoom Use 2% Tactical HUD 1 Map Filters NONE Filters NONE Steam 1 RUN: 7300b132-0045-48db-b280-00ab8e80d3f1